bitfinex/quotes_BTCUSD_20251116
["timestamp","ask_amount","ask_price","bid_price","bid_amount"]
[1763323834604,0.01984073,94564.0,94556.0,0.04365208]
[1763323834773,0.01984073,94563.0,94556.0,0.04365208]
[1763323835127,0.01984073,94562.0,94556.0,0.04365208]
[1763323835436,0.10464073,94561.0,94556.0,0.04465208]
[1763323835643,0.01984073,94560.0,94557.0,0.04365208]
[1763323835870,0.01984073,94559.0,94557.0,0.04365208]
[1763323836075,0.01984073,94558.0,94557.0,0.04365208]
[1763323837233,0.01984073,94558.0,94557.0,0.04465208]
[1763323837452,0.0521276,94590.0,94557.0,0.04465208]
[1763323837660,0.01,94587.0,94557.0,0.04465208]
[1763323837836,0.03181135,94570.0,94557.0,0.04465208]
[1763323838571,0.03181135,94570.0,94557.0,0.04365208]
[1763323841474,0.03181135,94570.0,94558.0,0.04365208]
[1763323843219,0.03181135,94570.0,94559.0,0.04341874]
[1763323843432,0.00993491,94569.0,94559.0,0.04341874]
[1763323843654,0.00993491,94568.0,94559.0,0.04341874]
[1763323843831,0.00993491,94567.0,94559.0,0.04341874]
[1763323844079,0.00993491,94566.0,94559.0,0.04341874]
[1763323844302,0.00993491,94565.0,94559.0,0.04341874]
[1763323844509,0.00993491,94564.0,94559.0,0.04341874]
[1763323844720,0.01660355,94576.0,94559.0,0.04341874]
[1763323844961,0.02004672,94575.0,94559.0,0.04341874]
[1763323845167,0.00993421,94574.0,94559.0,0.04341874]
[1763323845384,0.01660355,94576.0,94561.0,0.04341874]
[1763323845385,0.00993421,94573.0,94561.0,0.04341874]
[1763323845613,0.00993421,94572.0,94561.0,0.04341874]
[1763323845824,0.00993421,94571.0,94561.0,0.04341874]
[1763323846023,0.0848,94570.0,94561.0,0.04341874]
[1763323846224,0.0002501,94569.0,94561.0,0.04341874]
[1763323846634,0.0002501,94569.0,94561.0,0.04441874]
[1763323846958,0.0002501,94569.0,94563.0,0.04341874]
[1763323847157,0.0002501,94569.0,94562.0,0.1379843]
[1763323847385,0.0002501,94569.0,94562.0,0.16607273]
[1763323847580,0.0002501,94569.0,94568.0,0.04263]
[1763323847783,0.0002501,94569.0,94568.0,0.09855]
[1763323848580,0.0002501,94569.0,94568.0,0.04263]
[1763323848807,0.0002501,94569.0,94562.0,0.1389843]
[1763323849016,0.0002501,94569.0,94564.0,0.04263]
[1763323849218,0.0002501,94569.0,94568.0,0.001]
[1763323849425,0.0002501,94569.0,94565.0,0.04341874]
[1763323850318,0.0002501,94569.0,94566.0,0.04276082]
[1763323850756,0.0002501,94569.0,94568.0,0.001]
[1763323851169,0.0002501,94569.0,94566.0,0.04276082]
[1763323851389,0.0002501,94569.0,94567.0,0.09522348]
[1763323852000,0.0002501,94569.0,94568.0,0.001]
[1763323852201,0.0002501,94569.0,94567.0,0.09522348]
[1763323852577,0.0002501,94569.0,94567.0,0.09622348]
[1763323854232,0.0002501,94569.0,94567.0,0.09522348]
[1763323854760,0.0002501,94569.0,94568.0,0.001]
[1763323854948,0.0002501,94569.0,94567.0,0.09522348]
[1763323855372,0.0848,94568.0,94567.0,0.09622348]
[1763323855573,0.02286339,94593.0,94580.0,0.01999998]
[1763323855767,0.10463082,94592.0,94581.0,0.04251072]
[1763323855970,0.01983082,94591.0,94581.0,0.04251072]
[1763323856173,0.01983082,94590.0,94581.0,0.04251072]
[1763323856406,0.0848,94592.0,94582.0,0.01051407]
[1763323857043,0.0848,94592.0,94581.0,0.04251072]
[1763323857267,0.01982259,94591.0,94581.0,0.04251072]
[1763323857477,0.01981653,94590.0,94581.0,0.04251072]
[1763323857706,0.01981653,94589.0,94581.0,0.04251072]
[1763323857907,0.01981653,94588.0,94581.0,0.04251072]
[1763323858116,0.01981653,94587.0,94581.0,0.04251072]
[1763323858325,0.01981653,94586.0,94581.0,0.04251072]
[1763323858499,0.01981653,94585.0,94581.0,0.04251072]
[1763323858815,0.01981653,94584.0,94581.0,0.04251072]
[1763323859017,0.01981653,94583.0,94582.0,0.04251072]
[1763323859474,0.05298008,94591.0,94582.0,0.04251072]
[1763323859475,0.01981653,94590.0,94582.0,0.04251072]
[1763323859660,0.08058672,94589.0,94582.0,0.04251072]
[1763323859862,0.02972637,94588.0,94561.0,0.04251072]
[1763323860063,0.02972637,94587.0,94562.0,0.04251072]
[1763323860275,0.01981653,94586.0,94570.0,0.00999999]
[1763323860475,0.01981653,94585.0,94570.0,0.00999999]
[1763323860695,0.01981653,94584.0,94570.0,0.00999999]
[1763323860898,0.01981653,94583.0,94570.0,0.00999999]
[1763323861150,0.01981653,94582.0,94570.0,0.00999999]
[1763323861350,0.02014993,94581.0,94570.0,0.00999999]
[1763323861552,0.01981653,94580.0,94570.0,0.00999999]
[1763323861754,0.05298008,94591.0,94570.0,0.00999999]
[1763323861755,0.01981653,94579.0,94570.0,0.00999999]
[1763323861962,0.01981653,94578.0,94570.0,0.00999999]
[1763323862230,0.05298008,94591.0,94570.0,0.00999999]
[1763323862395,0.07453239,94590.0,94570.0,0.00999999]
[1763323862593,0.07453239,94590.0,94562.0,0.04251072]
[1763323862594,0.02973253,94589.0,94562.0,0.04251072]
[1763323862796,0.02973253,94588.0,94562.0,0.04251072]
[1763323863014,0.02973253,94587.0,94562.0,0.04251072]
[1763323863205,0.02973253,94586.0,94570.0,0.00999999]
[1763323863434,0.01982169,94585.0,94570.0,0.00999999]
[1763323863630,0.01982169,94584.0,94570.0,0.00999999]
[1763323863938,0.01982169,94583.0,94571.0,0.04251072]
[1763323864093,0.01982169,94582.0,94572.0,0.00625107]
[1763323864302,0.01982169,94581.0,94571.0,0.04251072]
[1763323864467,0.02283553,94593.0,94571.0,0.04251072]
[1763323864468,0.05291051,94592.0,94571.0,0.04251072]
[1763323864674,0.02973286,94591.0,94571.0,0.04251072]
[1763323864893,0.01982191,94590.0,94580.0,0.00999999]
[1763323865218,0.01982191,94589.0,94581.0,0.04251072]
[1763323865391,0.01982191,94588.0,94581.0,0.04251072]
[1763323865594,0.01982191,94587.0,94581.0,0.04251072]
[1763323865764,0.01982191,94586.0,94581.0,0.04251072]
[1763323865964,0.01982191,94585.0,94581.0,0.04251072]
[1763323866165,0.01982191,94584.0,94581.0,0.04251072]
[1763323866366,0.01982191,94583.0,94581.0,0.04251072]
[1763323866618,0.01982191,94582.0,94581.0,0.04251072]
[1763323866833,0.01982191,94588.0,94581.0,0.04251072]
[1763323867140,0.00036119,94582.0,94581.0,0.04251072]
[1763323867538,0.00036119,94582.0,94581.0,0.04351072]
[1763323867539,0.0201831,94582.0,94581.0,0.04351072]
[1763323869111,0.0201831,94582.0,94560.0,0.00999999]
[1763323869315,0.01982191,94581.0,94560.0,0.01013264]
[1763323869511,0.02747269,94580.0,94570.0,0.00999999]
[1763323869745,0.01982191,94579.0,94570.0,0.00999999]
[1763323870473,0.01982191,94579.0,94561.0,0.04251072]
[1763323872416,0.38136064,94594.0,94570.0,0.001]
[1763323872622,0.01,94587.0,94563.0,0.04251072]
[1763323872820,0.04172767,94586.0,94563.0,0.04251072]
[1763323873029,0.00991946,94585.0,94563.0,0.04251072]
[1763323873281,0.00991946,94584.0,94563.0,0.04251072]
[1763323873401,0.00991946,94583.0,94563.0,0.04251072]
[1763323873625,0.00991946,94582.0,94563.0,0.04251072]
[1763323873854,0.00991946,94581.0,94563.0,0.04251072]
[1763323874060,0.00991946,94580.0,94563.0,0.04251072]
[1763323874289,0.00991946,94579.0,94560.0,0.00013265]
[1763323874507,0.01,94568.0,94560.0,0.00013265]
[1763323874706,0.00991946,94567.0,94560.0,0.00013265]
[1763323874929,0.06265638,94567.0,94560.0,0.00013265]
[1763323875146,0.01,94561.0,94560.0,0.00013265]
[1763323875356,0.10471946,94561.0,94560.0,0.00013265]
[1763323875723,0.09471946,94561.0,94560.0,0.00013265]
[1763323875906,0.12653489,94561.0,94560.0,0.00013265]
[1763323876326,0.15288955,94561.0,94560.0,0.00013265]
[1763323877310,0.12653489,94561.0,94560.0,0.00013265]
[1763323878374,0.04173489,94561.0,94560.0,0.00013265]
[1763323880564,0.05173489,94561.0,94560.0,0.00013265]
[1763323880768,0.04173489,94561.0,94560.0,0.00013265]
[1763323881824,0.03181543,94561.0,94560.0,0.00013265]
[1763323881978,0.04171604,94561.0,94560.0,0.00013265]
[1763323882179,0.04171604,94561.0,94560.0,0.00017265]
[1763323883286,0.03181543,94561.0,94560.0,0.00017265]
[1763323883423,0.03181543,94561.0,94560.0,0.00021265]
[1763323883819,0.03181543,94561.0,94560.0,0.00025265]
[1763323884438,0.05160913,94561.0,94560.0,0.00025265]
[1763323885219,0.13640913,94561.0,94560.0,0.00025265]
[1763323887885,0.15532373,94561.0,94560.0,0.00025265]
[1763323888487,0.06150816,94561.0,94560.0,0.00025265]
[1763323888687,0.00025005,94578.0,94560.0,0.00025265]
[1763323888916,0.02969488,94577.0,94560.0,0.00025265]
[1763323889092,0.03181192,94565.0,94560.0,0.00025265]
[1763323889285,0.01979659,94564.0,94560.0,0.00025265]
[1763323889686,0.00025005,94578.0,94560.0,0.02025263]
[1763323889915,0.03180774,94575.0,94560.0,0.02025263]
[1763323890119,0.01979591,94574.0,94560.0,0.02025263]
[1763323890319,0.01979591,94573.0,94560.0,0.02025263]
[1763323890640,0.01979591,94572.0,94560.0,0.02025263]
[1763323890847,0.03180774,94575.0,94560.0,0.02025263]
[1763323891052,0.01979687,94574.0,94560.0,0.02125263]
[1763323891247,0.01979687,94573.0,94561.0,0.04251072]
[1763323891448,0.03180774,94575.0,94561.0,0.04251072]
[1763323891646,0.01979826,94574.0,94561.0,0.04251072]
[1763323891901,0.01979826,94573.0,94561.0,0.04251072]
[1763323892124,0.01041282,94574.0,94561.0,0.04251072]
[1763323892309,0.01979937,94573.0,94561.0,0.04251072]
[1763323892563,0.01041282,94574.0,94561.0,0.04351072]
[1763323892938,0.01041282,94574.0,94561.0,0.04251072]
[1763323893172,0.01041282,94574.0,94561.0,0.04351072]
[1763323893353,0.01041282,94574.0,94561.0,0.04451072]
[1763323893792,0.03180774,94576.0,94561.0,0.04351072]
[1763323894263,0.00025005,94578.0,94570.0,0.00999999]
[1763323894673,0.03205779,94578.0,94570.0,0.00999999]
[1763323894879,0.03205779,94578.0,94571.0,0.04251072]
[1763323895057,0.00025005,94578.0,94571.0,0.04251072]
[1763323895228,0.0848,94577.0,94571.0,0.04251072]
[1763323896385,0.0848,94577.0,94571.0,0.05251979]
[1763323896615,0.0848,94577.0,94571.0,0.05351979]
[1763323897033,0.0848,94577.0,94571.0,0.04351072]
[1763323897208,0.0848,94577.0,94571.0,0.04451072]
[1763323897553,0.0848,94577.0,94571.0,0.04351072]
[1763323897748,0.0848,94577.0,94571.0,0.04251072]
[1763323897954,0.0848,94577.0,94573.0,0.04341874]
[1763323898472,0.0848,94577.0,94573.0,0.08099874]
[1763323898928,0.0848,94577.0,94575.0,0.09522348]
[1763323900296,0.0848,94577.0,94575.0,0.09622348]
[1763323901111,0.0848,94577.0,94575.0,0.09722348]
[1763323901355,0.0848,94577.0,94575.0,0.002]
[1763323902594,0.0848,94577.0,94576.0,0.22752348]
[1763323902810,0.0848,94577.0,94576.0,0.26858477]
[1763323902983,0.0848,94577.0,94576.0,0.09367072]
[1763323903197,0.10139926,94577.0,94576.0,0.17481072]
[1763323903728,0.10139926,94577.0,94576.0,0.17581072]
[1763323903986,0.0848,94577.0,94576.0,0.17581072]
[1763323904184,0.16694131,94594.0,94580.0,0.01999998]
[1763323904386,0.16694131,94594.0,94581.0,0.04251072]
[1763323904636,0.16694131,94594.0,94581.0,0.07741793]
[1763323905325,0.0848,94593.0,94582.0,0.07562]
[1763323907085,0.0848,94593.0,94582.0,0.07662]
[1763323907287,0.01659844,94591.0,94582.0,0.07762]
[1763323907487,0.01659844,94591.0,94583.0,0.28244083]
[1763323909161,0.01659844,94591.0,94583.0,0.28344083]
[1763323909570,0.01659844,94591.0,94583.0,0.28444083]
[1763323909774,0.00025002,94587.0,94583.0,0.28444083]
[1763323909946,0.00025002,94587.0,94583.0,0.24102209]
[1763323910729,0.00025002,94587.0,94583.0,0.24002209]
[1763323911516,0.00025002,94587.0,94583.0,0.24102209]
[1763323911718,0.00025002,94587.0,94584.0,0.04251072]
[1763323912368,0.00025002,94587.0,94583.0,0.002]
[1763323912369,0.00025002,94587.0,94583.0,0.00199977]
[1763323912614,0.00025002,94587.0,94583.0,0.00099977]
[1763323912988,0.01977362,94586.0,94584.0,0.001]
[1763323913134,0.00025002,94587.0,94584.0,0.001]
[1763323913331,0.01977835,94586.0,94584.0,0.001]
[1763323913534,0.00025002,94587.0,94584.0,0.001]
[1763323913738,0.01977835,94586.0,94580.0,0.00999999]
[1763323913986,0.01977836,94585.0,94580.0,0.00999999]
[1763323914223,0.00025002,94587.0,94580.0,0.00999999]
[1763323914426,0.0197836,94586.0,94584.0,0.001]
[1763323914712,0.0197836,94585.0,94580.0,0.00999999]
[1763323914869,0.0197836,94584.0,94580.0,0.001]
[1763323915070,0.00025002,94587.0,94580.0,0.00999999]
[1763323915280,0.10458984,94586.0,94580.0,0.00999999]
[1763323915476,0.01978984,94585.0,94580.0,0.00999999]
[1763323915683,0.01978984,94584.0,94580.0,0.00999999]
[1763323915933,0.01978984,94583.0,94580.0,0.00999999]
[1763323916134,0.0848,94586.0,94580.0,0.00999999]
[1763323916315,0.01979686,94585.0,94580.0,0.00999999]
[1763323916493,0.0848,94586.0,94584.0,0.001]
[1763323916698,0.01979686,94585.0,94580.0,0.00999999]
[1763323916910,0.01979686,94584.0,94580.0,0.01099999]
[1763323917127,0.03872397,94583.0,94580.0,0.01099999]
[1763323917312,0.01979686,94582.0,94580.0,0.01099999]
[1763323917710,0.01979686,94582.0,94580.0,0.00999999]
[1763323918134,0.05266533,94593.0,94580.0,0.00999999]
[1763323918340,0.02544642,94592.0,94580.0,0.00999999]
[1763323918544,0.05203044,94590.0,94580.0,0.00999999]
[1763323918745,0.00990621,94589.0,94580.0,0.00999999]
[1763323918892,0.00990621,94588.0,94580.0,0.01099999]
[1763323919102,0.00990621,94587.0,94580.0,0.01099999]
[1763323919302,0.00990621,94586.0,94580.0,0.01099999]
[1763323919543,0.00990621,94585.0,94580.0,0.001]
[1763323919783,0.00990621,94585.0,94580.0,0.002]
[1763323920398,0.00990621,94585.0,94571.0,0.1491]
[1763323920788,0.03180747,94584.0,94571.0,0.1491]
[1763323920985,0.00990621,94583.0,94571.0,0.1491]
[1763323921196,0.00990621,94583.0,94580.0,0.001]
[1763323921539,0.00991192,94582.0,94571.0,0.1491]
[1763323921697,0.00991192,94581.0,94571.0,0.1491]
[1763323921897,0.03180747,94584.0,94571.0,0.1491]
[1763323921898,0.00991192,94580.0,94571.0,0.1491]
[1763323922106,0.00991192,94579.0,94571.0,0.1491]
[1763323922311,0.00991192,94578.0,94571.0,0.1491]
[1763323922514,0.00991192,94577.0,94571.0,0.1491]
[1763323922711,0.00991192,94576.0,94571.0,0.1491]
[1763323923026,0.00991192,94575.0,94571.0,0.1491]
[1763323923164,0.00991192,94574.0,94572.0,0.1491]
[1763323923365,0.00991192,94573.0,94572.0,0.1491]
[1763323924540,0.00991192,94573.0,94572.0,0.1501]
[1763323924761,0.00991192,94573.0,94572.0,0.002]
[1763323924762,0.01991192,94573.0,94572.0,0.002]
[1763323925214,0.05171939,94573.0,94572.0,0.002]
[1763323925413,0.22131939,94573.0,94572.0,0.001]
[1763323925644,0.01,94572.0,94560.0,0.00025265]
[1763323925876,0.00991192,94571.0,94560.0,0.00025265]
[1763323926097,0.00991192,94570.0,94560.0,0.00025265]
[1763323926304,0.00991192,94569.0,94560.0,0.00025265]
[1763323926513,0.00991192,94568.0,94560.0,0.00025265]
[1763323926756,0.00991192,94567.0,94560.0,0.00025265]
[1763323926968,0.00991192,94567.0,94515.0,0.07562]
[1763323926969,4.90514,94564.0,94520.0,0.00019222]
[1763323927181,0.00980777,94570.0,94520.0,0.00019222]
[1763323927182,0.01,94545.0,94520.0,0.01023697]
[1763323927428,0.00991192,94544.0,94520.0,0.01023697]
[1763323927646,0.01,94562.0,94530.0,0.00019222]
[1763323927871,0.03181901,94547.0,94530.0,0.01019221]
[1763323928094,0.01837038,94546.0,94530.0,0.01019221]
[1763323928312,0.00847749,94546.0,94530.0,0.01019221]
[1763323929375,0.00847749,94546.0,94530.0,0.00019222]
[1763323929579,0.00847749,94546.0,94530.0,0.01019221]
[1763323929781,0.00847749,94546.0,94530.0,0.00119222]
[1763323929972,0.0098823,94545.0,94530.0,0.00119222]
[1763323930187,0.02964647,94544.0,94530.0,0.00119222]
[1763323930423,0.03664077,94543.0,94530.0,0.00119222]
[1763323930593,0.01976417,94542.0,94530.0,0.00119222]
[1763323930810,0.0069943,94543.0,94530.0,0.00119222]
[1763323930811,0.01976417,94541.0,94530.0,0.00119222]
[1763323931122,0.01976417,94540.0,94530.0,0.00019222]
[1763323931327,0.03637261,94539.0,94530.0,0.00019222]
[1763323931534,0.03637261,94539.0,94520.0,0.01004475]
[1763323931535,0.01976417,94538.0,94520.0,4.476e-05]
[1763323931767,0.01976417,94537.0,94520.0,0.00023698]
[1763323932009,0.0069943,94543.0,94520.0,0.00023698]
[1763323932010,0.01976417,94536.0,94520.0,0.00023698]
[1763323932161,0.01976417,94535.0,94530.0,0.001]
[1763323932368,0.01976417,94536.0,94531.0,0.1491]
[1763323932568,0.01972993,94535.0,94531.0,0.1491]
[1763323932770,0.01976417,94536.0,94531.0,0.1491]
[1763323932931,0.01973008,94535.0,94531.0,0.1491]
[1763323933151,0.01973008,94534.0,94531.0,0.1491]
[1763323933355,0.01976417,94536.0,94531.0,0.1491]
[1763323933641,0.01972216,94535.0,94531.0,0.1501]
[1763323933844,0.01972216,94534.0,94531.0,0.1491]
[1763323934047,0.01976417,94536.0,94531.0,0.1491]
[1763323934231,0.01971368,94535.0,94531.0,0.1491]
[1763323934379,0.01971368,94534.0,94531.0,0.1491]
[1763323934576,0.01976417,94536.0,94531.0,0.1501]
[1763323934801,0.01971367,94535.0,94531.0,0.1501]
[1763323935002,0.01976417,94536.0,94531.0,0.1501]
[1763323935204,0.01971343,94535.0,94531.0,0.1501]
[1763323935525,0.0848,94535.0,94531.0,0.1491]
[1763323935744,0.0848,94535.0,94531.0,0.1501]
[1763323936094,0.01971039,94534.0,94531.0,0.1501]
[1763323936310,0.0848,94535.0,94531.0,0.1491]
[1763323936532,0.0848,94535.0,94531.0,0.1501]
[1763323936917,0.0848,94535.0,94531.0,0.1511]
[1763323937141,0.0848,94534.0,94531.0,0.1511]
[1763323937373,0.0848,94534.0,94532.0,0.28093348]
[1763323937591,0.0848,94534.0,94533.0,0.24304874]
[1763323937800,0.0848,94534.0,94533.0,0.31416874]
[1763323938015,0.0848,94534.0,94533.0,0.21698096]
[1763323939581,0.0848,94534.0,94533.0,0.21898096]
[1763323940443,0.0848,94534.0,94533.0,0.21698096]
[1763323940847,0.0848,94534.0,94533.0,0.21898096]
[1763323941235,0.0848,94534.0,94533.0,0.22198096]
[1763323944138,0.03180872,94573.0,94550.0,0.05341873]
[1763323944384,0.03180872,94573.0,94551.0,0.1491]
[1763323944572,0.03180872,94573.0,94551.0,0.24432348]
[1763323945098,0.01320958,94586.0,94570.0,0.00019222]
[1763323945236,0.11443361,94585.0,94571.0,0.1491]
[1763323945431,0.11443361,94585.0,94570.0,0.01019221]
[1763323945432,0.06143919,94584.0,94570.0,0.01019221]
[1763323945678,0.0848,94585.0,94570.0,0.01019221]
[1763323945679,0.01975574,94583.0,94570.0,0.01019221]
[1763323946011,0.01975574,94582.0,94570.0,0.01019221]
[1763323946212,0.01975574,94581.0,94571.0,0.01179222]
[1763323946436,0.0848,94585.0,94571.0,0.04341874]
[1763323946636,0.01975375,94584.0,94571.0,0.04341874]
[1763323946968,0.01975375,94583.0,94571.0,0.04341874]
[1763323947133,0.0848,94585.0,94571.0,0.04341874]
[1763323947543,0.0848,94585.0,94571.0,0.04441874]
[1763323947699,0.02823943,94584.0,94571.0,0.001]
[1763323947909,0.01975233,94583.0,94571.0,0.001]
[1763323948317,0.0166011,94581.0,94571.0,0.001]
[1763323948918,0.0166011,94581.0,94570.0,0.01019221]
[1763323949143,0.0166011,94581.0,94571.0,0.001]
[1763323949317,0.0166011,94581.0,94571.0,0.002]
[1763323949519,0.0166011,94581.0,94570.0,0.00999999]
[1763323949718,0.01975386,94580.0,94570.0,0.01019221]
[1763323949949,0.01975386,94579.0,94571.0,0.001]
[1763323950176,0.01975386,94578.0,94571.0,0.001]
[1763323950503,0.01975386,94577.0,94570.0,0.01019221]
[1763323950705,0.0166011,94581.0,94570.0,0.01019221]
[1763323950916,0.01975502,94580.0,94570.0,0.01019221]
[1763323951087,0.01975502,94579.0,94570.0,0.01019221]
[1763323951247,0.01975502,94578.0,94570.0,0.01119221]
[1763323951453,0.01975502,94577.0,94570.0,0.01119221]
[1763323951786,0.01975502,94576.0,94570.0,0.01119221]
[1763323952026,0.0166011,94581.0,94570.0,0.01119221]
[1763323952203,0.01975417,94580.0,94570.0,0.01119221]
[1763323952402,0.01975417,94579.0,94570.0,0.00019222]
[1763323952609,0.01975417,94578.0,94570.0,0.01019221]
[1763323952810,0.01975417,94577.0,94570.0,0.01019221]
[1763323953014,0.01975417,94576.0,94571.0,0.1491]
[1763323953189,0.0166011,94581.0,94571.0,0.1491]
[1763323953393,0.01975275,94580.0,94571.0,0.1491]
[1763323953592,0.01975275,94579.0,94571.0,0.1491]
[1763323953798,0.01975275,94578.0,94571.0,0.1491]
[1763323953993,0.01975275,94577.0,94571.0,0.1491]
[1763323954315,0.01975218,94576.0,94571.0,0.1501]
[1763323954557,0.0166011,94581.0,94571.0,0.1501]
[1763323954747,0.01975197,94580.0,94571.0,0.1511]
[1763323954954,0.01975197,94579.0,94571.0,0.1501]
[1763323955142,0.01975197,94578.0,94571.0,0.1501]
[1763323955338,0.10455197,94577.0,94571.0,0.1511]
[1763323955672,0.0848,94577.0,94571.0,0.1491]
[1763323955863,0.0848,94577.0,94571.0,0.1511]
[1763323957021,0.0848,94577.0,94571.0,0.1501]
[1763323957234,0.0848,94577.0,94571.0,0.1511]
[1763323957422,0.00553192,94580.0,94571.0,0.1511]
[1763323957623,0.01975075,94579.0,94571.0,0.1511]
[1763323957927,0.00553192,94580.0,94571.0,0.1511]
[1763323958447,0.00553192,94580.0,94571.0,0.1501]
[1763323958618,0.00553192,94580.0,94571.0,0.1491]
[1763323958816,0.00553192,94580.0,94572.0,0.1491]
[1763323959147,0.00553192,94580.0,94572.0,0.10486]
[1763323961044,0.00553192,94580.0,94572.0,0.10586]
[1763323961726,0.00553192,94580.0,94572.0,0.10686]
[1763323963178,0.01977325,94579.0,94572.0,0.10686]
[1763323963510,0.00553192,94580.0,94572.0,0.10686]
[1763323963659,0.01977321,94579.0,94572.0,0.10686]
[1763323963861,0.00553192,94580.0,94572.0,0.10686]
[1763323964062,0.01977321,94579.0,94572.0,0.10686]
[1763323964300,0.01977321,94578.0,94572.0,0.10586]
[1763323964513,0.01977321,94577.0,94572.0,0.10586]
[1763323964717,0.00553192,94580.0,94573.0,0.10486]
[1763323964860,0.01978419,94579.0,94573.0,0.10486]
[1763323965067,0.01978419,94578.0,94573.0,0.10486]
[1763323965300,0.10458419,94577.0,94573.0,0.10486]
[1763323965494,0.01978419,94576.0,94573.0,0.10486]
[1763323966332,0.01978419,94576.0,94573.0,0.10586]
[1763323967105,0.01978419,94576.0,94573.0,0.10686]
[1763323967620,0.01978419,94576.0,94573.0,0.10586]
[1763323967826,0.01978419,94576.0,94573.0,0.10686]
[1763323968376,0.01978419,94576.0,94573.0,0.10586]
[1763323968697,0.01978419,94576.0,94573.0,0.10686]
[1763323969116,0.01978419,94576.0,94573.0,0.10586]
[1763323969516,0.01978419,94576.0,94573.0,0.10686]
[1763323969726,0.01978419,94576.0,94573.0,0.10586]
[1763323969953,0.0848,94577.0,94573.0,0.1069]
[1763323970158,0.0848,94577.0,94573.0,0.00104]
[1763323971424,0.0848,94577.0,94573.0,0.00204]
[1763323972085,0.0848,94577.0,94573.0,0.00104]
[1763323972479,0.0848,94577.0,94576.0,0.04708]
[1763323972702,0.10464058,94577.0,94576.0,0.04708]
[1763323973052,0.10464058,94577.0,94573.0,0.00204]
[1763323973200,0.01984058,94576.0,94573.0,0.00104]
[1763323973398,0.01984058,94576.0,94574.0,0.06929]
[1763323973599,0.0848,94577.0,94573.0,0.00104]
[1763323973897,0.01984377,94576.0,94573.0,0.00104]
[1763323974157,0.09494011,94577.0,94573.0,0.00104]
[1763323974364,0.01984786,94576.0,94573.0,0.00104]
[1763323974516,0.0848,94577.0,94573.0,0.00104]
[1763323974716,0.01984786,94576.0,94573.0,0.00104]
[1763323974922,0.0848,94577.0,94573.0,0.00104]
[1763323975107,0.01984786,94576.0,94573.0,0.00204]
[1763323975313,0.01984786,94575.0,94573.0,0.00204]
[1763323975515,0.0848,94574.0,94573.0,0.00204]
[1763323975752,0.0848,94574.0,94573.0,0.00211101]
[1763323975950,0.0848,94574.0,94573.0,0.00011101]
[1763323976327,0.10139984,94574.0,94573.0,0.00111101]
[1763323976533,0.10139984,94574.0,94573.0,0.00011101]
[1763323976816,0.10139984,94574.0,94573.0,0.00111101]
[1763323977326,0.10139984,94574.0,94573.0,0.00211101]
[1763323977701,0.10139984,94574.0,94573.0,0.00111101]
[1763323977962,0.10139984,94574.0,94573.0,0.00211101]
[1763323978473,0.12124693,94574.0,94573.0,0.00211101]
[1763323978674,0.12124693,94574.0,94573.0,0.00111101]
[1763323978989,0.12124693,94574.0,94573.0,0.00211101]
[1763323979192,0.12124693,94574.0,94573.0,0.00111101]
[1763323979390,0.12124693,94574.0,94573.0,0.00211101]
[1763323980197,0.10139984,94574.0,94573.0,0.12562111]
[1763323980397,0.10139984,94574.0,94573.0,0.16189975]
[1763323981012,0.0848,94574.0,94573.0,0.16189975]
[1763323989873,0.05245195,94608.0,94573.0,0.16189975]
[1763323989874,0.06208302,94624.0,94574.0,0.04341874]
[1763323990077,0.01659878,94586.0,94580.0,0.00999999]
[1763323990287,0.0198499,94585.0,94580.0,0.00999999]
[1763323990493,0.0198499,94584.0,94579.0,0.09522348]
[1763323990743,0.0198499,94583.0,94579.0,0.09522348]
[1763323990910,0.0198499,94582.0,94579.0,0.09522348]
[1763323991074,0.0198499,94581.0,94579.0,0.09522348]
[1763323991276,0.01659869,94586.0,94580.0,0.00999999]
[1763323991489,0.01984626,94585.0,94580.0,0.00999999]
[1763323991691,0.01984626,94584.0,94580.0,0.00999999]
[1763323991886,0.01984626,94583.0,94580.0,0.00999999]
[1763323992130,0.01984626,94582.0,94579.0,0.09522348]
[1763323992359,0.01659869,94586.0,94580.0,0.00999999]
[1763323992529,0.0198449,94585.0,94580.0,0.01099999]
[1763323992748,0.0198449,94584.0,94580.0,0.001]
[1763323992937,0.0198449,94583.0,94579.0,0.09622348]
[1763323993157,0.01659869,94586.0,94580.0,0.00999999]
[1763323993364,0.01984557,94585.0,94580.0,0.00999999]
[1763323993521,0.01984557,94584.0,94580.0,0.00999999]
[1763323993722,0.01659869,94586.0,94580.0,0.01199999]
[1763323994005,0.01984452,94585.0,94580.0,0.01199999]
[1763323994205,0.01659869,94586.0,94580.0,0.01199999]
[1763323995270,0.01659869,94586.0,94580.0,0.01099999]
[1763323996047,0.01659869,94586.0,94580.0,0.01199999]
[1763323996515,0.01659869,94586.0,94580.0,0.01099999]
[1763323996862,0.01659869,94586.0,94580.0,0.01199999]
[1763323997468,0.01659869,94586.0,94580.0,0.01219221]
[1763323998276,0.10461065,94585.0,94580.0,0.01219221]
[1763323998502,0.08476,94585.0,94580.0,0.01219221]
[1763323999341,0.08476,94585.0,94580.0,0.01019221]
[1763323999482,0.08476,94585.0,94584.0,0.04622]
[1763323999689,0.08476,94585.0,94584.0,0.15448874]
[1763324000722,0.08476,94585.0,94584.0,0.04341874]
[1763324001773,0.08476,94585.0,94584.0,0.04441874]
[1763324001992,0.08476,94585.0,94584.0,0.04541874]
[1763324004159,0.08476,94585.0,94584.0,0.15648874]
[1763324006372,0.05243108,94633.0,94585.0,0.12103874]
[1763324006513,0.05241897,94631.0,94590.0,0.00999999]
[1763324006712,0.01659803,94596.0,94590.0,0.00999999]
[1763324007082,0.05284271,94617.0,94590.0,0.00999999]
[1763324007083,0.01985003,94595.0,94590.0,0.00999999]
[1763324007292,0.01659804,94595.0,94590.0,0.00999999]
[1763324007466,0.05284271,94617.0,94590.0,0.00999999]
[1763324007686,0.02977366,94616.0,94600.0,0.00999999]
[1763324007889,0.02977366,94615.0,94600.0,0.00999999]
[1763324008098,0.05283863,94617.0,94600.0,0.00999999]
[1763324008099,0.02977366,94614.0,94600.0,0.00999999]
[1763324008395,0.02977366,94613.0,94600.0,0.00999999]
[1763324008606,0.02977366,94612.0,94600.0,0.01999998]
[1763324008745,0.02977366,94611.0,94600.0,0.01999998]
[1763324008941,0.02977366,94610.0,94600.0,0.01999998]
[1763324009194,0.02977366,94609.0,94600.0,0.01999998]
[1763324009408,0.02977366,94608.0,94600.0,0.01999998]
[1763324009568,0.02977366,94607.0,94600.0,0.01999998]
[1763324009769,0.02977366,94606.0,94600.0,0.01999998]
[1763324009969,0.05283863,94617.0,94600.0,0.00999999]
[1763324009970,0.02977366,94605.0,94600.0,0.00999999]
[1763324010170,0.02977366,94604.0,94590.0,0.01999998]